fUSD/lending_fUSD_20250208
["ID","MTS","AMOUNT","RATE_DAILY","PERIOD"]
[352319168,1739040652258,-1272.7,0.00010546,2]
[352319170,1739040652267,-500.0,0.00010546,2]
[352319172,1739040652277,-1626.06,0.00010546,2]
[352319174,1739040652286,-500.0,0.00010546,2]
[352319176,1739040652296,-500.0,0.00010546,2]
[352319178,1739040652305,-578.22,0.00010546,2]
[352319180,1739040652315,-500.0,0.00010546,2]
[352319182,1739040652324,-1035.7,0.00010546,2]
[352319184,1739040652333,-500.0,0.00010546,2]
[352319186,1739040652343,-1103.82,0.00010546,2]
[352319188,1739040652352,-1509.65,0.00010546,2]
[352319190,1739040652362,-500.0,0.00010546,2]
[352319192,1739040652372,-813.08,0.00010546,2]
[352319194,1739040652382,-1060.65,0.00010546,2]
[352319196,1739040652393,-629.65,0.00010546,2]
[352319198,1739040652403,-975.76,0.00010546,2]
[352319200,1739040652415,-2030.46,0.00010546,2]
[352319202,1739040652424,-500.0,0.00010546,2]
[352319204,1739040652434,-1299.78,0.00010546,2]
[352319206,1739040652443,-500.0,0.00010546,2]
[352319208,1739040652453,-1121.57,0.00010546,2]
[352319210,1739040652463,-500.0,0.00010546,2]
[352319211,1739040652473,-956.12,0.00010546,2]
[352319212,1739040652482,-1058.02,0.00010546,2]
[352319213,1739040652492,-872.69,0.00010546,2]
[352319214,1739040652501,-500.0,0.00010546,2]
[352319215,1739040652510,-1626.96,0.00010546,2]
[352319216,1739040652520,-784.0,0.00010546,2]
[352319217,1739040652529,-2570.48,0.00010546,2]
[352319218,1739040652539,-1224.32,0.00010546,2]
[352319219,1739040652553,-500.0,0.00010546,2]
[352319220,1739040652562,-1394.44,0.00010546,2]
[352319221,1739040652571,-1320.72,0.00010546,2]
[352319222,1739040652580,-500.0,0.00010546,2]
[352319223,1739040652591,-1577.09,0.00010546,2]
[352319224,1739040652600,-950.54,0.00010546,2]
[352319225,1739040652609,-500.0,0.00010546,2]
[352319226,1739040652618,-500.0,0.00010546,2]
[352319227,1739040652630,-4199.11,0.00010546,2]
[352319228,1739040652639,-855.99,0.00010546,2]
[352319229,1739040652652,-937.51,0.00010546,2]
[352319230,1739040652663,-905.52,0.00010546,2]
[352319231,1739040652672,-500.0,0.00010546,2]
[352319232,1739040652682,-1507.74,0.00010546,2]
[352319233,1739040652692,-889.65,0.00010546,2]
[352319234,1739040652701,-2539.11,0.00010546,2]
[352319235,1739040652711,-500.0,0.00010546,2]
[352319236,1739040652721,-1440.29,0.00010546,2]
[352319237,1739040652730,-500.0,0.00010546,2]
[352319238,1739040652739,-577.99,0.00010546,2]
[352319240,1739040652748,-2091.76,0.00010546,2]
[352319242,1739040652758,-1029.88,0.00010546,2]
[352319244,1739040652768,-1156.42,0.00010546,2]
[352319246,1739040652777,-1705.0,0.00010546,2]
[352319248,1739040652786,-1782.34,0.00010546,2]
[352319250,1739040652795,-1767.73,0.00010546,2]
[352319252,1739040652804,-500.0,0.00010546,2]
[352319254,1739040652814,-500.0,0.00010546,2]
[352319256,1739040652823,-500.0,0.00010546,2]
[352319258,1739040652832,-500.0,0.00010546,2]
[352319260,1739040652841,-1128.81,0.00010546,2]
[352319261,1739040652850,-500.0,0.00010546,2]
[352319263,1739040652859,-990.75,0.00010546,2]
[352319265,1739040652868,-500.0,0.00010546,2]
[352319268,1739040652878,-1250.13,0.00010546,2]
[352319269,1739040652887,-1568.08,0.00010546,2]
[352319270,1739040652896,-500.0,0.00010546,2]
[352319271,1739040652906,-909.38,0.00010546,2]
[352319272,1739040652916,-631.4,0.00010546,2]
[352319273,1739040652925,-500.0,0.00010546,2]
[352319274,1739040652935,-1218.52,0.00010546,2]
[352319275,1739040652944,-1944.78,0.00010546,2]
[352319276,1739040652953,-500.0,0.00010546,2]
[352319277,1739040652963,-500.0,0.00010546,2]
[352319278,1739040652971,-1135.79,0.00010546,2]
[352319279,1739040652981,-1784.48,0.00010546,2]
[352319280,1739040652990,-1201.96,0.00010546,2]
[352319281,1739040652999,-1159.47,0.00010546,2]
[352319282,1739040653009,-500.0,0.00010546,2]
[352319283,1739040653018,-2050.98,0.00010546,2]
[352319284,1739040653027,-500.0,0.00010546,2]
[352319285,1739040653037,-767.37,0.00010546,2]
[352319286,1739040653046,-500.0,0.00010546,2]
[352319287,1739040653056,-1074.59,0.00010546,2]
[352319288,1739040653065,-1957.48,0.00010546,2]
[352319289,1739040653074,-205.19924499,0.00010546,2]
[352319290,1739040653083,-1546.44,0.00010546,2]
[352319291,1739040653093,-760.52,0.00010546,2]
[352319292,1739040653102,-1057.92,0.00010546,2]
[352319293,1739040653111,-500.0,0.00010546,2]
[352319294,1739040653121,-1574.93,0.00010546,2]
[352319295,1739040653130,-1020.46,0.00010546,2]
[352319296,1739040653140,-500.0,0.00010546,2]
[352319297,1739040653150,-3009.18,0.00010546,2]
[352319298,1739040653160,-500.0,0.00010546,2]
[352319299,1739040653170,-518.65442365,0.00010546,2]
[352319300,1739040653180,-650.92,0.00010546,2]
[352319301,1739040653190,-1095.06,0.00010546,2]
[352319302,1739040653199,-1269.34,0.00010546,2]
[352319303,1739040653209,-500.0,0.00010546,2]
[352319304,1739040653219,-2250.02,0.00010546,2]
[352319305,1739040653228,-500.0,0.00010546,2]
[352319306,1739040653237,-636.57818706,0.00010546,2]
[352319307,1739040653247,-653.39,0.00010546,2]
[352319308,1739040653256,-1602.28,0.00010546,2]
[352319309,1739040653265,-1053.71,0.00010546,2]
[352319310,1739040653274,-500.0,0.00010546,2]
[352319311,1739040653283,-3166.67,0.00010546,2]
[352319312,1739040653292,-500.0,0.00010546,2]
[352319313,1739040653302,-500.0,0.00010546,2]
[352319314,1739040653310,-585.49,0.00010546,2]
[352319315,1739040653319,-1679.98,0.00010546,2]
[352319316,1739040653328,-904.18,0.00010546,2]
[352319317,1739040653337,-1568.8,0.00010546,2]
[352319318,1739040653347,-264.30455129,0.00010546,2]
[352319319,1739040653356,-500.0,0.00010546,2]
[352319320,1739040653365,-500.0,0.00010546,2]
[352319321,1739040653374,-1400.81,0.00010546,2]
[352319322,1739040653384,-500.0,0.00010546,2]
[352319323,1739040653393,-511.81,0.00010546,2]
[352319324,1739040653403,-500.0,0.00010546,2]
[352319325,1739040653413,-500.0,0.00010546,2]
[352319326,1739040653422,-500.0,0.00010546,2]
[352319327,1739040653431,-804.57,0.00010546,2]
[352319328,1739040653441,-697.81,0.00010546,2]
[352319329,1739040653450,-500.0,0.00010546,2]
[352319330,1739040653460,-2077.69,0.00010546,2]
[352319331,1739040653470,-449.65589322,0.00010546,2]
[352319332,1739040653485,-830.59410678,0.00010546,2]
[352319333,1739040653495,-500.0,0.00010546,2]
[352319334,1739040653504,-1663.58,0.00010546,2]
[352319335,1739040653514,-500.0,0.00010546,2]
[352319336,1739040653523,-500.0,0.00010547,2]
[352319337,1739040653532,-500.0,0.00010547,2]
[352319338,1739040653542,-500.0,0.00010547,2]
[352319339,1739040653554,-500.0,0.00010547,2]
[352319340,1739040653565,-429.56064643,0.00010547,2]
[352319341,1739040653575,-500.0,0.00010547,2]
[352319342,1739040653583,-500.0,0.00010547,2]
[352319343,1739040653594,-500.0,0.00010547,2]
[352319344,1739040653604,-500.0,0.00010547,2]
[352319345,1739040653613,-500.0,0.00010547,2]
[352319346,1739040653622,-500.0,0.00010547,2]
[352319347,1739040653633,-500.0,0.00010547,2]
[352319348,1739040653643,-500.0,0.00010547,2]
[352319349,1739040653652,-500.0,0.00010547,2]
[352319350,1739040653662,-246.11803247,0.00010547,2]
[352319351,1739040653672,-500.0,0.00010547,2]
[352319352,1739040653681,-500.0,0.00010547,2]
[352319353,1739040653690,-500.0,0.00010547,2]
[352319354,1739040653700,-500.0,0.00010547,2]
[352319355,1739040653709,-500.0,0.00010547,2]
[352319356,1739040653719,-500.0,0.00010547,2]
[352319357,1739040653728,-500.0,0.00010547,2]
[352319358,1739040653738,-500.0,0.00010547,2]
[352319359,1739040653747,-330.14721432,0.00010547,2]
[352319360,1739040653759,-169.85278568,0.00010547,2]
[352319361,1739040653768,-500.0,0.00010547,2]
[352319362,1739040653778,-500.0,0.00010547,2]
[352319363,1739040653787,-500.0,0.00010547,2]
[352319364,1739040653796,-500.0,0.00010547,2]
[352319365,1739040653806,-500.0,0.00010547,2]
[352319366,1739040653815,-500.0,0.00010547,2]
[352319367,1739040653824,-500.0,0.00010547,2]
[352319368,1739040653833,-500.0,0.00010547,2]
[352319369,1739040653843,-500.0,0.00010547,2]
[352319370,1739040653852,-500.0,0.00010547,2]
[352319371,1739040653862,-500.0,0.00010547,2]
[352319372,1739040653871,-500.0,0.00010547,2]
[352319373,1739040653880,-500.0,0.00010547,2]
[352319374,1739040653890,-462.64621805,0.00010547,2]
[352319375,1739040653899,-500.0,0.00010547,2]
[352319376,1739040653909,-500.0,0.00010547,2]
[352319377,1739040653918,-500.0,0.00010547,2]
[352319378,1739040653927,-892.29,0.00010547,2]
[352319379,1739040653937,-500.0,0.00010547,2]
[352319380,1739040653946,-704.67,0.00010547,2]
[352319381,1739040653956,-308.3414976,0.00010547,2]
[352319382,1739040653965,-500.0,0.00010547,2]
[352319383,1739040653976,-632.37,0.00010547,2]
[352319384,1739040653986,-500.0,0.00010547,2]
[352319385,1739040653996,-698.41,0.00010547,2]
[352319386,1739040654006,-500.0,0.00010547,2]
[352319387,1739040654016,-500.0,0.00010547,2]
[352319388,1739040654025,-500.0,0.00010547,2]
[352319389,1739040654035,-500.0,0.00010547,2]
[352319390,1739040654044,-516.51,0.00010547,2]
[352319391,1739040654054,-500.0,0.00010547,2]
[352319392,1739040654063,-500.0,0.00010547,2]
[352319393,1739040654073,-992.45,0.00010547,2]
[352319394,1739040654082,-500.0,0.00010547,2]
[352319395,1739040654093,-500.0,0.00010547,2]
[352319396,1739040654102,-500.0,0.00010547,2]
[352319397,1739040654112,-226.25949867,0.00010547,2]
[352319398,1739040654124,-273.74050133,0.00010547,2]
[352319399,1739040654134,-500.0,0.00010547,2]
[352319400,1739040654145,-801.97,0.00010547,2]
[352319401,1739040654156,-500.0,0.00010547,2]
[352319402,1739040654165,-541.42,0.00010547,2]
[352319403,1739040654174,-598.71,0.00010547,2]
[352319404,1739040654185,-500.0,0.00010547,2]
[352319405,1739040654195,-500.0,0.00010547,2]
[352319406,1739040654205,-570.8,0.00010547,2]
[352319407,1739040654214,-748.75984805,0.00010547,2]
[352319408,1739040654226,-114.68015195,0.00010547,2]
[352319409,1739040654235,-500.0,0.00010547,2]
[352319410,1739040654246,-500.0,0.00010547,2]
[352319411,1739040654256,-412.99920915,0.00010547,2]
[352319412,1739040654269,-87.00079085,0.00010547,2]
[352319413,1739040654278,-500.0,0.00010547,2]
[352319414,1739040654287,-437.99920915,0.00010547,2]
[352319415,1739040654299,-521.22079085,0.00010547,2]
[352319416,1739040654308,-500.0,0.00010547,2]
[352319417,1739040654318,-500.0,0.00010547,2]
[352319418,1739040654328,-500.0,0.00010547,2]
[352319419,1739040654338,-500.0,0.00010547,2]
[352319420,1739040654347,-509.81,0.00010547,2]
[352319421,1739040654357,-500.0,0.00010547,2]
[352319422,1739040654368,-500.0,0.00010547,2]
[352319423,1739040654378,-824.88,0.00010547,2]
[352319424,1739040654388,-500.0,0.00010547,2]
[352319425,1739040654398,-500.0,0.00010547,2]
[352319426,1739040654408,-818.12,0.00010547,2]
[352319427,1739040654419,-500.0,0.00010547,2]
[352319428,1739040654429,-500.0,0.00010547,2]
[352319429,1739040654438,-500.0,0.00010547,2]
[352319430,1739040654448,-500.0,0.00010547,2]
[352319431,1739040654458,-533.58,0.00010547,2]
[352319432,1739040654468,-500.0,0.00010547,2]
[352319433,1739040654478,-500.0,0.00010547,2]
[352319434,1739040654487,-500.0,0.00010547,2]
[352319435,1739040654497,-500.0,0.00010547,2]
[352319436,1739040654507,-500.0,0.00010547,2]
[352319437,1739040654517,-500.0,0.00010547,2]
[352319438,1739040654527,-500.0,0.00010547,2]
[352319439,1739040654538,-514.1,0.00010547,2]
[352319440,1739040654550,-500.0,0.00010547,2]
[352319441,1739040654562,-500.0,0.00010547,2]
[352319442,1739040654571,-525.36,0.00010547,2]
[352319443,1739040654582,-500.0,0.00010547,2]
[352319444,1739040654592,-500.0,0.00010547,2]
[352319445,1739040654603,-500.0,0.00010547,2]
[352319446,1739040654612,-705.24,0.00010547,2]
[352319447,1739040654622,-500.0,0.00010547,2]
[352319448,1739040654633,-500.0,0.00010547,2]
[352319449,1739040654644,-500.0,0.00010547,2]
[352319450,1739040654654,-693.46,0.00010547,2]
[352319451,1739040654665,-500.0,0.00010547,2]
[352319452,1739040654674,-1380.81,0.00010547,2]
[352319453,1739040654684,-826.86,0.00010547,2]
[352319454,1739040654695,-500.0,0.00010547,2]
[352319455,1739040654704,-1217.96,0.00010547,2]
[352319456,1739040654714,-588.83,0.00010547,2]
[352319457,1739040654725,-950.06,0.00010547,2]
[352319458,1739040654735,-1018.16,0.00010547,2]
[352319459,1739040654745,-500.0,0.00010547,2]
[352319460,1739040654755,-4440.08,0.00010547,2]
[352319461,1739040654765,-500.0,0.00010547,2]
[352319462,1739040654775,-500.0,0.00010547,2]
[352319463,1739040654785,-907.44,0.00010547,2]
[352319464,1739040654795,-550.5,0.00010547,2]
[352319465,1739040654806,-1206.48,0.00010547,2]
[352319466,1739040654816,-500.0,0.00010547,2]
[352319467,1739040654826,-500.0,0.00010547,2]
[352319468,1739040654836,-500.0,0.00010547,2]
[352319469,1739040654845,-1299.55,0.00010547,2]
[352319470,1739040654855,-509.54,0.00010547,2]
[352319471,1739040654865,-500.0,0.00010547,2]
[352319472,1739040654875,-1082.73,0.00010547,2]
[352319473,1739040654885,-1026.14,0.00010547,2]
[352319474,1739040654895,-500.0,0.00010547,2]
[352319475,1739040654905,-500.0,0.00010547,2]
[352319476,1739040654915,-1645.78,0.00010547,2]
[352319477,1739040654924,-500.0,0.00010547,2]
[352319478,1739040654935,-1105.4,0.00010547,2]
[352319479,1739040654944,-941.65,0.00010547,2]
[352319480,1739040654955,-1091.51,0.00010547,2]
[352319481,1739040654964,-500.0,0.00010547,2]
[352319482,1739040654974,-1509.86,0.00010547,2]
[352319483,1739040654984,-500.0,0.00010547,2]
[352319484,1739040654993,-1781.25,0.00010547,2]
[352319485,1739040655003,-398.42780204,0.00010547,2]
[352319486,1739040655012,-500.0,0.00010547,2]
[352319487,1739040655022,-500.0,0.00010547,2]
[352319488,1739040655032,-1219.25,0.00010547,2]
[352319489,1739040655041,-500.0,0.00010547,2]
[352319490,1739040655051,-1120.47,0.00010547,2]
[352319491,1739040655061,-513.37,0.00010547,2]
[352319492,1739040655070,-500.0,0.00010547,2]
[352319493,1739040655080,-500.0,0.00010547,2]
[352319494,1739040655090,-500.0,0.00010547,2]
[352319495,1739040655099,-1699.35,0.00010547,2]
[352319496,1739040655109,-500.0,0.00010547,2]
[352319497,1739040655118,-1753.37,0.00010547,2]
[352319498,1739040655128,-490.12677748,0.00010547,2]
[352319499,1739040655138,-500.0,0.00010547,2]
[352319500,1739040655148,-500.0,0.00010547,2]
[352319501,1739040655158,-1179.89,0.00010547,2]
[352319502,1739040655168,-500.0,0.00010547,2]
[352319503,1739040655178,-633.06388568,0.00010547,2]
[352319504,1739040655188,-500.0,0.00010547,2]
[352319505,1739040655197,-500.0,0.00010547,2]
[352319506,1739040655207,-500.0,0.00010547,2]
[352319507,1739040655216,-500.0,0.00010547,2]
[352319508,1739040655225,-500.0,0.00010547,2]
[352319509,1739040655234,-500.0,0.00010547,2]
[352319510,1739040655243,-942.33,0.00010547,2]
[352319511,1739040655253,-500.0,0.00010547,2]
[352319512,1739040655262,-500.0,0.00010547,2]
[352319513,1739040655271,-1550.16,0.000106,2]
[352319514,1739040655281,-878.54,0.000106,2]
[352319515,1739040655291,-215.77,0.00010643,2]
[352319516,1739040655300,-1000.0,0.00010668,2]
[352319517,1739040655310,-1140.02,0.00010683,2]
[352319518,1739040655319,-1348.87,0.00010683,2]
[352319519,1739040655329,-500.0,0.00010683,2]
[352319520,1739040655340,-500.0,0.00010683,2]
[352319521,1739040655350,-793.09,0.00010683,2]
[352319522,1739040655361,-500.0,0.00010683,2]
[352319523,1739040655371,-500.0,0.00010683,2]
[352319524,1739040655381,-872.27,0.00010683,2]
[352319525,1739040655392,-1066.48,0.00010683,2]
[352319526,1739040655402,-890.85,0.00010683,2]
[352319527,1739040655415,-500.0,0.00010683,2]
[352319528,1739040655424,-500.0,0.00010683,2]
[352319529,1739040655435,-500.0,0.00010683,2]
[352319530,1739040655445,-500.0,0.00010683,2]
[352319531,1739040655456,-500.0,0.00010683,2]
[352319532,1739040655465,-500.0,0.00010683,2]
[352319533,1739040655475,-500.0,0.00010683,2]
[352319534,1739040655485,-714.72,0.00010683,2]
[352319535,1739040655495,-500.0,0.00010683,2]
[352319536,1739040655505,-890.34,0.00010683,2]
[352319537,1739040655514,-500.0,0.00010683,2]
[352319538,1739040655524,-500.0,0.00010683,2]
[352319539,1739040655534,-899.55,0.00010683,2]
[352319540,1739040655544,-500.0,0.00010683,2]
[352319541,1739040655559,-1116.403512,0.00010683,2]
[352319542,1739040655568,-895.34,0.00010683,2]
[352319543,1739040655578,-500.0,0.00010683,2]
[352319544,1739040655588,-500.0,0.00010683,2]
[352319545,1739040655599,-500.0,0.00010683,2]
[352319546,1739040655609,-320.3324223,0.00010683,2]
[352319547,1739040655619,-1028.215139,0.00010683,2]
[352319548,1739040655628,-500.0,0.00010683,2]
[352319549,1739040655640,-500.0,0.00010683,2]
[352319550,1739040655650,-500.0,0.00010683,2]
[352319551,1739040655662,-644.84907759,0.00010683,2]
[352319552,1739040655672,-592.01,0.00010683,2]
[352319553,1739040655683,-1035.14,0.00010683,2]
[352319554,1739040655693,-876.65,0.00010683,2]
[352319555,1739040655704,-500.0,0.00010683,2]
[352319556,1739040655715,-931.39,0.00010683,2]
[352319557,1739040655726,-500.0,0.00010683,2]
[352319558,1739040655736,-500.0,0.00010683,2]
[352319559,1739040655747,-875.35,0.00010683,2]
[352319560,1739040655758,-869.1,0.00010683,2]
[352319561,1739040655768,-500.0,0.00010683,2]
[352319562,1739040655782,-500.0,0.00010683,2]
[352319563,1739040655792,-582.1,0.00010683,2]
[352319564,1739040655803,-500.0,0.00010683,2]
[352319565,1739040655814,-793.14,0.00010683,2]
[352319566,1739040655823,-500.0,0.00010683,2]
[352319567,1739040655833,-1074.27,0.00010683,2]
[352319568,1739040655843,-848.7,0.00010683,2]
[352319569,1739040655854,-685.6,0.00010683,2]
[352319570,1739040655864,-500.0,0.00010683,2]
[352319571,1739040655874,-500.0,0.00010683,2]
[352319572,1739040655884,-500.0,0.00010683,2]
[352319573,1739040655894,-500.0,0.00010683,2]
[352319574,1739040655904,-500.0,0.00010683,2]
[352319575,1739040655916,-500.0,0.00010683,2]
[352319576,1739040655927,-500.0,0.00010683,2]
[352319577,1739040655937,-500.0,0.00010683,2]
[352319578,1739040655947,-500.0,0.00010683,2]
[352319579,1739040655959,-787.81,0.00010683,2]
[352319580,1739040655970,-682.13,0.00010683,2]
[352319581,1739040655981,-500.0,0.00010683,2]
[352319582,1739040655991,-500.0,0.00010683,2]
[352319583,1739040656001,-1272.7,0.00010683,2]
[352319584,1739040656011,-500.0,0.00010683,2]
[352319585,1739040656021,-737.31319051,0.00010683,2]
[352319586,1739040656036,-888.74680949,0.00010683,2]
[352319587,1739040656046,-500.0,0.00010683,2]
[352319588,1739040656058,-500.0,0.00010683,2]
[352319589,1739040656068,-578.22,0.00010683,2]
[352319590,1739040656078,-500.0,0.00010683,2]
[352319591,1739040656089,-1035.7,0.00010683,2]
[352319592,1739040656100,-500.0,0.00010683,2]
[352319593,1739040656111,-1103.82,0.00010683,2]
[352319594,1739040656121,-1509.65,0.00010683,2]
[352319595,1739040656134,-500.0,0.00010683,2]
[352319596,1739040656145,-500.0,0.00010683,2]
[352319597,1739040656158,-813.08,0.00010683,2]
[352319598,1739040656168,-1060.65,0.00010683,2]
[352319599,1739040656179,-629.65,0.00010683,2]
[352319600,1739040656189,-975.76,0.00010683,2]
[352319601,1739040656200,-2030.46,0.00010683,2]
[352319602,1739040656210,-1299.78,0.00010683,2]
[352319603,1739040656220,-500.0,0.00010683,2]
[352319604,1739040656231,-1121.57,0.00010683,2]
[352319605,1739040656243,-956.12,0.00010683,2]
[352319606,1739040656255,-1058.02,0.00010683,2]
[352319607,1739040656267,-872.69,0.00010683,2]
[352319608,1739040656278,-500.0,0.00010683,2]
[352319609,1739040656290,-1626.96,0.00010683,2]
[352319610,1739040656301,-784.0,0.00010683,2]
[352319611,1739040656311,-2570.48,0.00010683,2]
[352319612,1739040656322,-1224.32,0.00010683,2]
[352319613,1739040656331,-500.0,0.00010683,2]
[352319614,1739040656343,-1394.44,0.00010683,2]
[352319615,1739040656355,-1320.72,0.00010683,2]
[352319616,1739040656367,-500.0,0.00010683,2]
[352319617,1739040656379,-1577.09,0.00010683,2]
[352319618,1739040656389,-950.54,0.00010683,2]
[352319619,1739040656399,-500.0,0.00010683,2]
[352319620,1739040656410,-4199.11,0.00010683,2]
[352319621,1739040656421,-855.99,0.00010683,2]
[352319622,1739040656431,-937.51,0.00010683,2]
[352319623,1739040656442,-905.52,0.00010683,2]
[352319624,1739040656452,-500.0,0.00010683,2]
[352319625,1739040656463,-1507.74,0.00010683,2]
[352319626,1739040656474,-889.65,0.00010683,2]
[352319627,1739040656485,-2539.11,0.00010683,2]
[352319628,1739040656497,-500.0,0.00010683,2]
[352319629,1739040656507,-1440.29,0.00010683,2]
[352319630,1739040656517,-500.0,0.00010683,2]
[352319631,1739040656529,-577.99,0.00010683,2]
[352319632,1739040656540,-2091.76,0.00010683,2]
[352319633,1739040656554,-1029.88,0.00010683,2]
[352319634,1739040656564,-1156.42,0.00010683,2]
[352319635,1739040656574,-1705.0,0.00010683,2]
[352319636,1739040656584,-1782.34,0.00010683,2]
[352319637,1739040656596,-1767.73,0.00010683,2]
[352319638,1739040656607,-500.0,0.00010683,2]
[352319639,1739040656617,-500.0,0.00010683,2]
[352319640,1739040656629,-1128.81,0.00010683,2]
[352319641,1739040656640,-500.0,0.00010683,2]
[352319642,1739040656651,-990.75,0.00010683,2]
[352319643,1739040656661,-500.0,0.00010683,2]
[352319644,1739040656671,-1250.13,0.00010683,2]
[352319645,1739040656682,-1568.08,0.00010683,2]
[352319646,1739040656692,-500.0,0.00010683,2]
[352319647,1739040656703,-909.38,0.00010683,2]
[352319648,1739040656713,-631.4,0.00010683,2]
[352319649,1739040656724,-500.0,0.00010683,2]
[352319650,1739040656930,-1218.52,0.00010683,2]
[352319651,1739040656941,-1944.78,0.00010683,2]
[352319652,1739040656950,-500.0,0.00010683,2]
[352319653,1739040656961,-500.0,0.00010683,2]
[352319654,1739040656972,-1135.79,0.00010683,2]
[352319655,1739040656983,-1784.48,0.00010683,2]
[352319656,1739040656992,-1201.96,0.00010683,2]
[352319657,1739040657002,-1159.47,0.00010683,2]
[352319658,1739040657012,-500.0,0.00010683,2]
[352319659,1739040657022,-2050.98,0.00010683,2]
[352319660,1739040657032,-504.0,0.00010683,2]
[352319661,1739040657042,-767.37,0.00010683,2]
[352319662,1739040657052,-500.0,0.00010683,2]
[352319663,1739040657062,-1074.59,0.00010683,2]
[352319664,1739040657072,-1957.48,0.00010683,2]
[352319665,1739040657082,-1546.44,0.00010683,2]
[352319666,1739040657092,-760.52,0.00010683,2]
[352319667,1739040657102,-1057.92,0.00010683,2]
[352319668,1739040657111,-500.0,0.00010683,2]
[352319669,1739040657121,-1574.93,0.00010683,2]
[352319670,1739040657131,-1020.46,0.00010683,2]
[352319671,1739040657141,-500.0,0.00010683,2]
[352319672,1739040657151,-3009.18,0.00010683,2]
[352319673,1739040657161,-500.0,0.00010683,2]
[352319674,1739040657171,-650.92,0.00010683,2]
[352319675,1739040657182,-1095.06,0.00010683,2]
[352319676,1739040657192,-1269.34,0.00010683,2]
[352319677,1739040657202,-500.0,0.00010683,2]
[352319678,1739040657213,-2250.02,0.00010683,2]
[352319679,1739040657224,-500.0,0.00010683,2]
[352319680,1739040657234,-653.39,0.00010683,2]
[352319681,1739040657244,-1602.28,0.00010683,2]
[352319682,1739040657254,-1053.71,0.00010683,2]
[352319683,1739040657263,-500.0,0.00010683,2]
[352319684,1739040657274,-3166.67,0.00010683,2]
[352319685,1739040657284,-297.8504165,0.00010683,2]
[352319686,1739040657294,-500.0,0.00010683,2]
[352319687,1739040657304,-585.49,0.00010683,2]
[352319688,1739040657315,-1679.98,0.00010683,2]
[352319689,1739040657325,-904.18,0.00010683,2]
[352319690,1739040657334,-1568.8,0.00010683,2]
[352319691,1739040657344,-500.0,0.00010683,2]
[352319692,1739040657354,-500.0,0.00010683,2]
[352319693,1739040657364,-1400.81,0.00010683,2]
[352319694,1739040657374,-500.0,0.00010683,2]
[352319695,1739040657383,-511.81,0.00010683,2]
[352319696,1739040657393,-500.0,0.00010683,2]
[352319697,1739040657402,-448.51198955,0.00010683,2]
[352319698,1739040657413,-500.0,0.00010683,2]
[352319699,1739040657423,-804.57,0.00010683,2]
[352319700,1739040657432,-697.81,0.00010683,2]
[352319701,1739040657443,-2077.69,0.00010683,2]
[352319702,1739040657453,-1280.25,0.00010683,2]
[352319703,1739040657462,-500.0,0.00010683,2]